Cogmind - Beta 16.1 @@@ ROGUE MODE // 2026.02.17 @ 21:03:40 Player: Krzychu Result: Destroyed by Autobeam Turret with Autobeam Performance ------------- Evolutions (0) 0 Regions Visited (2) 400 Robots Destroyed (14) 70 Value Destroyed (374) 374 Prototype IDs (0) 0 Alien Tech Used (0) 0 Bonus (0) 0 TOTAL SCORE: 844 Bonus ------- None Cogmind --------- Core Integrity 0/250 Matter 300/300 Energy 200/200 System Corruption 0% Temperature Cool (6) Movement Core (200) Ox3 Location -10/Subcaves Parts ------- > --- POWER (1) -------- Subdweller Power Source > --- PROPULSION (2) --- (None) > --- UTILITY (2) ------ Small Storage Unit > --- WEAPON (2) ------- (None) > --- INVENTORY (8) ---- Subdweller Monowheel Subdweller Monowheel Scrap Shield Scrap Shield Fragment (47) Peak State ------------ > --- POWER ------------ Subdweller Power Source > --- PROPULSION ------- Subdweller Monowheel Subdweller Monowheel > --- UTILITY ---------- Small Storage Unit Improved Terrain Scanner > --- WEAPON ----------- Beam Cannon Assault Rifle > --- INVENTORY -------- Ion Engine Light Ion Engine Wheel Compact Wheel Subdweller Optics Subdweller Beam Cannon Subdweller Shrapnel Launcher Flamer [Rating: 13] Favorites ----------- Power Light Ion Engine Engine Light Ion Engine Propulsion Compact Wheel Leg Aluminum Leg Wheel Compact Wheel Utility Small Storage Unit Device Seismic Detector Storage Small Storage Unit Protection Scrap Shield Weapon Assault Rifle Energy Gun EM Pulse Gun Energy Cannon Subdweller Beam Cannon Ballistic Gun Assault Rifle Launcher Subdweller Shrapnel Launcher Special Weapon Flamer Build | -11 -10 -10 ------- Run | Yrd Mat Sub Slots Evolved . | . . . Power . | . . . Propulsion . | . . . Utility . | . . . Weapon . | . . . Parts Attached 24 | 10 . 14 Power 3 | 1 . 2 Engine 3 | 1 . 2 Core . | . . . Reactor . | . . . Propulsion 7 | 4 . 3 Treads . | . . . Leg 2 | 2 . . Wheel 5 | 2 . 3 Hover . | . . . Flight . | . . . Utility 6 | 3 . 3 Device 4 | 2 . 2 Storage 1 | 1 . . Processor . | . . . Hackware . | . . . Protection 1 | . . 1 Artifact . | . . . Weapon 8 | 2 . 6 Energy Gun 2 | 1 . 1 Energy Cannon 2 | . . 2 Ballistic Gun 1 | 1 . . Ballistic Cannon . | . . . Launcher 1 | . . 1 Special Weapon 2 | . . 2 Impact Weapon . | . . . Slashing Weapon . | . . . Piercing Weapon . | . . . Special Melee Weapon . | . . . Unidentified Prototypes . | . . . Parts Lost 5 | . . 5 Power . | . . . Propulsion 2 | . . 2 Utility 1 | . . 1 Weapon 2 | . . 2 Highest Loss Streak 2 | . . 2 To Critical Strikes 1 | . . 1 Average Backups 5 | 1 5 5 Power . | . 1 . Propulsion 1 | . 1 1 Utility 1 | . . 1 Weapon 1 | 1 2 1 Tool/Special . | . . . Unused Backups 4 | . . 4 Power 1 | . . 1 Propulsion 2 | . . 2 Utility 1 | . . 1 Weapon . | . . . Tool/Special . | . . . Average Slot Usage (%) 97 | . 100 96 Engine 14 | . 14 14 Wheel 27 | . 28 27 Device 12 | . 14 12 Storage 13 | . 14 13 Energy Gun 6 | . 14 3 Ballistic Gun 13 | . 14 13 Launcher 2 | . . 2 Special Weapon 4 | . . 6 Peak Build Rating 13 | 9 7 13 Average Rating 9 | 6 7 10 On Entrance 4 | . 7 7 Avg Prop Armor Cover (%) . | . . . Naked Turns . | . . . Heaviest Build 33 | 13 13 33 Greatest Support 40 | 26 26 40 Greatest Overweight (x) 3 | 2 . 3 Average Overweight (x) . | . . . Largest Inventory Capacity 8 | 8 8 8 Average Capacity 7 | 7 8 7 Most Carried 8 | 5 6 8 Average Carried 5 | 2 5 6 Final Capacity 8 | 8 8 8 Final Carried 6 | 5 6 5 Class Distribution -------------------- 93% | Mutant 3% | Scavenger-Mutant Dominant Class ---------------- Mutant | -10/Materials Mutant | -10/Subcaves Resources | -11 -10 -10 ----------- Run | Yrd Mat Sub Matter Collected 756 | 238 . 518 Remotely . | . . . Salvage Created 374 | 50 . 324 Parts 32 | 7 . 25 Haulers Intercepted . | . . . Recyclers Shooed 1 | 1 . . Parts Field Recycled . | . . . Retrieved Matter . | . . . Parts Self-Destructed 6 | . . 6 Prevented . | . . . Parts Restored . | . . . Kills | -11 -10 -10 ------- Run | Yrd Mat Sub Combat Hostiles Destroyed 12 | . . 12 Guns 8 | . . 8 Cannons 1 | . . 1 AOE 3 | . . 3 Classes Destroyed 3 | 1 . 2 Tunneler 2 | 2 . . Swarmer 4 | . . 4 Subdweller 8 | . . 8 Best Kill Streak 3 | 2 . 3 Combat Bots Only 3 | . . 3 Max Kills in Single Turn 1 | 1 . 1 Gunslinging . | . . . Exploded 1 | . . 1 Melee . | . . . Uniques/NPCs Destroyed . | . . . Combat | -11 -10 -10 -------- Run | Yrd Mat Sub Hostile Shots Fired 116 | . . 116 Missed 35 | . . 35 Hits 81 | . . 81 Projectile 81 | . . 81 Critical Strikes 2 | . . 2 Damage Taken 913 | . . 913 Core 258 | . . 258 Absorbed by Shields . | . . . Core Remaining (%) 100 | 100 . . Volleys Fired 55 | 4 . 51 Largest 2 | 2 . 2 Hottest 120 | 60 . 120 Shots Fired 89 | 8 . 81 Gun 50 | 8 . 42 Cannon 11 | . . 11 Launcher 8 | . . 8 Special 20 | . . 20 Kinetic 47 | 4 . 43 Thermal 31 | . . 31 Explosive . | . . . Electromagnetic 11 | 4 . 7 Robot Hit Streak 29 | 8 . 29 Robot Miss Streak 3 | . . 3 Penetration Max . | . . . Secondary Targets . | . . . Shots Hit Robots 47 | 8 . 39 Core Hits 23 | 3 . 20 Critical Kills 1 | . . 1 Critical Parts Destroyed . | . . . Critical Strikes 2 | . . 2 Destroy 2 | . . 2 Melee Attacks . | . . . Impact . | . . . Slashing . | . . . Piercing . | . . . Sneak Attacks . | . . . Combat Hostiles . | . . . Follow-up Attacks . | . . . Damage Inflicted 1011 | 99 . 912 Guns 447 | 99 . 348 Cannons 135 | . . 135 Explosions 406 | . . 406 Melee . | . . . Ramming . | . . . Kinetic 725 | 50 . 675 Thermal 158 | . . 158 Explosive . | . . . Electromagnetic 128 | 49 . 79 Impact . | . . . Slashing . | . . . Piercing . | . . . Highest Corruption . | . . . Average Corruption . | . . . Corruption Purged . | . . . Corruption Blocked . | . . . Overload Shots . | . . . Overflow Damage 5 | . . 5 Projectiles 5 | . . 5 Explosions . | . . . Melee . | . . . Knockbacks . | . . . Impact . | . . . Kinetic . | . . . Secondary . | . . . Self-Inflicted Damage 100 | . . 100 Shots 4 | . . 4 Rammed 1 | . . 1 Targets Rammed 1 | . . 1 Kicked . | . . . Crushed . | . . . Highest Temperature . | . . . Average Temperature . | . . . Received Heat Transfer 237 | . . 237 Siege Activations . | . . . Martial Activations . | . . . Shielding Activations . | . . . Robots Disrupted . | . . . Combat Hostiles . | . . . Robots Corrupted . | . . . Combat Hostiles . | . . . Parts Fried . | . . . Impact Corruptions . | . . . Robots Melted . | . . . Combat Hostiles . | . . . Parts Melted . | . . . Heat Transferred 382 | . . 382 Parts Sabotaged . | . . . Parts Stolen . | . . . Parts Stripped . | . . . Power Chain Reactions . | . . . Alert | -11 -10 -10 ------- Run | Yrd Mat Sub Maximum Alert Level . | . . . Low Security (%) 100 | 100 100 . Level 1 . | . . . Level 2 . | . . . Level 3 . | . . . Level 4 . | . . . Level 5 . | . . . High Security . | . . . Max Security . | . . . Peak Influence 5 | 5 . . Initial . | . . . Average . | 1 . . Influence Increases 180 | 10 . 170 Destroy 0b10 Robot/C 80 | . . 80 Destroy 0b10 Robot/NC 10 | 10 . . Lose Combat Pursuer 90 | . . 90 Influence Decreases 90 | 10 . 80 Time Decay 50 | 10 . 40 Lost Part 40 | . . 40 Squads Dispatched 1 | . 1 . Investigation . | . . . Extermination . | . . . Reinforcement 1 | . 1 . Assault . | . . . Garrison . | . . . Intercept . | . . . Searches Triggered . | . . . Construction Impeded . | . . . Haulers Reinforced . | . . . Active Scanning Responses . | . . . Cargo Convoy Interrupts . | . . . Stealth | -11 -10 -10 --------- Run | Yrd Mat Sub Distress Signals 1 | . 1 . Communications Jammed . | . . . Distress Signals . | . . . Times Spotted 24 | . 2 22 Peak Tracking Total 5 | . 2 5 Tactical Retreats 2 | . . 2 Traps | -11 -10 -10 ------- Run | Yrd Mat Sub Traps Triggered . | . . . Indirectly . | . . . Trap Hack Attempts . | . . . Triggered . | . . . Disarmed . | . . . Reprogrammed . | . . . Reused . | . . . Traps Extracted . | . . . Installed . | . . . Triggered . | . . . Machines | -11 -10 -10 ---------- Run | Yrd Mat Sub Machines Disabled . | . . . Max in Single Turn . | . . . Machines Repaired . | . . . Machines Dismantled . | . . . Machines Sabotaged . | . . . Overloaded Fab Kills . | . . . Hacking | -11 -10 -10 --------- Run | Yrd Mat Sub Machines Accessed . | . . . Terminals . | . . . Fabricators . | . . . Repair Stations . | . . . Recycling Units . | . . . Scanalyzers . | . . . Garrison Access . | . . . Total Hacks . | . . . Successful . | . . . Failed . | . . . Catastrophic . | . . . Database Lockouts . | . . . Manual . | . . . Terminals . | . . . Fabricators . | . . . Repair Stations . | . . . Recycling Units . | . . . Scanalyzers . | . . . Garrison Access . | . . . Terminal Hacks . | . . . Fabricator Hacks . | . . . Repair Station Hacks . | . . . Recycling Unit Hacks . | . . . Scanalyzer . | . . . Garrison Access Hacks . | . . . Unauthorized Hacks . | . . . Terminals . | . . . Fabricators . | . . . Repair Stations . | . . . Recycling Units . | . . . Scanalyzers . | . . . Garrison Access . | . . . Data Cores Recovered . | . . . Used . | . . . Hacking Detections . | . . . Full Trace Events . | . . . Feedback Events . | . . . Feedback Blocked . | . . . Robot Schematics Acquired . | . . . Robots Built . | . . . Authchips . | . . . Time . | . . . Total Robot Build Rating . | . . . Part Schematics Acquired . | . . . Parts Built . | . . . Authchips . | . . . Time . | . . . Total Part Build Rating . | . . . Part Studies Acquired . | . . . Parts Repaired . | . . . Time . | . . . Parts Recycled . | . . . Recycled Matter . | . . . Retrieved Matter . | . . . Retrieved Components . | . . . Parts Scanalyzed . | . . . Part Schematics Acquired . | . . . Parts Damaged . | . . . Bothacking | -11 -10 -10 ------------ Run | Yrd Mat Sub Used RIF Installer . | . . . Robots Hacked . | . . . Non-combat . | . . . Combat . | . . . Robot Hacks Applied . | . . . Relay Couplers Released . | . . . Fabnet Peak Effective % . | . . . Robots Rewired . | . . . Allies Hacked . | . . . Hacks Repelled . | . . . Allies | -11 -10 -10 -------- Run | Yrd Mat Sub Total Allies . | . . . Largest Group . | . . . Highest-Rated Group . | . . . Highest-Rated Ally . | . . . Total Orders . | . . . Ally Attacks . | . . . Total Damage . | . . . Kills . | . . . Allies Corrupted . | . . . Allies Melted . | . . . Intel | -11 -10 -10 ------- Run | Yrd Mat Sub Active Infowar (turns) 1534 | 40 450 1044 Optics 172 | . . 172 Terrain 610 | 18 . 592 Seismic 752 | 22 450 280 Robot Analysis Total . | . . . Derelict Logs Recovered 1 | . . 1 Drone Launches . | . . . Drone Recoveries . | . . . Exploration | -11 -10 -10 ------------- Run | Yrd Mat Sub Turns Passed 1757 | 93 450 1214 Spaces Moved 1066 | 58 160 848 Core 6 | 5 . 1 Treads . | . . . Legs 13 | 13 . . Wheels 1047 | 40 160 847 Hover . | . . . Flight . | . . . Fastest Speed 50 | 50 90 90 Average Speed 100 | 96 90 103 Slowest Speed 200 | 150 90 200 Overloaded Moves . | . . . Propulsion Burnouts . | . . . Robots Hopped . | . . . Potential Cave-ins . | . . . Cave-ins Triggered . | . . . Exploration Rate (%) 23 | 3 12 54 Regions Visited 2 Branch Regions 1 Pre-discovered Areas . | . . . Known Exits Taken . | . . . Unknown Exits Taken 2 | 1 1 . Scrap Searched 8 | . . 8 Spaces Dug . | . . . Terrain Destroyed 108 | . . 108 Melee . | . . . Projectile 1 | . . 1 AOE 107 | . . 107 Terrain Rammed . | . . . Walls Destroyed . | . . . Machines Disabled . | . . . Actions | -11 -10 -10 --------- Run | Yrd Mat Sub Total 1621 | 84 466 1071 Wait 429 | 4 304 121 Move 1064 | 57 159 848 Hop . | . . . Pick Up 15 | 5 2 8 Fast Attach 11 | 9 . 2 Attach 6 | . . 6 Detach 8 | 2 . 6 Swap 13 | 1 . 12 Drop 19 | 2 1 16 Fire 55 | 4 . 51 Melee . | . . . Ram 1 | . . 1 Kick . | . . . Crush . | . . . Escape Stasis . | . . . Rewire . | . . . Trap . | . . . Miscellaneous . | . . . Route ------- -11/Scrapyard -10/Materials -10/Subcaves (discovered 2 exits: [*Mat] / [*Rec]) History --------- Turn | Location | Event 6 | -11/Scrapyard | Discovered new exit (range 15) 94 | -11/Scrapyard | Entered Materials 304 | -10/Materials | Build established: Mutant 339 | -10/Materials | Discovered new exit (range 3) 544 | -10/Materials | Entered Subcaves 600 | -10/Subcaves | A swath of the cavern ceiling suddenly collapsed 1034 | -10/Subcaves | Discovered new exit (range 8) 1164 | -10/Subcaves | Core integrity fell below 50% 1505 | -10/Subcaves | A swath of the cavern ceiling suddenly collapsed 1588 | -10/Subcaves | Learned location of 1 exit from Materials 1618 | -10/Subcaves | Discovered new exit (range 10) 1751 | -10/Subcaves | Core integrity fell below 20% 1758 | -10/Subcaves | Destroyed by Autobeam Turret with Autobeam Last Messages --------------- down. 01667_ S-10 Pest destroyed. 01670_ Acquired 11 matter. 01675_ Acquired Sml. Storage Unit. 01676_ Acquired 11 matter. 01678_ Lgt. Assault Rifle fries itself beyond repair. 01679_ Dropped Broken Sub. Beam Cannon. 01680_ Flight Unit fries itself beyond repair. 01684_ Acquired 37 matter. 01686_ Acquired Scrap Shield Fragment. 01696_ Assault Rifle destroyed. 01720_ S-10 Pest destroyed. 01725_ Acquired 17 matter. 01740_ Sub. Shrapnel Launcher shoots sparks and powers down. 01743_ Dropped Broken Sub. Shrapnel Launcher. 01747_ Com. Wheel destroyed. 01750_ Acquired 8 matter. 01756_ Sub. Monowheel destroyed. Map ----- +----------------------------------------------------+ | ?????????????????????????????????????????????????? | | ?????????????????????????????????????????????????? | | ?????????????????????????????????????????????????? | | ?????????????????????????????????????????????????? | | ?????????????????????????????????????????????????? | | ???????????####?????????????????????????????????? | | ###???##?## ###??####????????????????????????? | | #### ##""""""#### ##???????????????????????? | | " " " ## ##?????# ??????????????? | | ## ##???#"" ?????????????? | | ###"" "" ?????????????? | | " ""##"" "" ????????????? | | ?## ##"" "" "" ""????????????? | | ??## #### ]= " "" "" ??????????????? | | ???# ### "" """####??????????????? | | ???# ## # """###???????????????? | | ???## ### ###" """ "####????????????? | | ????# ##?####?# = !! ] ###??????????? | | ??? ###???????# ##### " #??????????? | | ?# #?????????#"%"#???### ##?????????? | | # ##??????#### ######## ##????????? | | ##???????#" "## # # #????????? | | ### ?????????# ## #????????? | | # ??% ?????????# ## #????????? | | ## ???# ?????????#" t t "## # #"##????????? | | ???# ??? ?????????#" "@" "# #####?????????? | | ??? ???? ?????????#"""" """"## "##?????????????? | | ???????? ?????????#####<##### ""#??????????????? | | ???????? ?????????????###???## "#??????????????? | | ??????????????????????????????## ##??????????????? | | ?????????????????????????????##%##????????###????? | | ????????????????????????????## |#?????##### ###### | | ????????????????????????????# ##????## # ## | | ????????????????????????????### ##???# " | | ??????????????????????????????## ##??## """" | | ??????????????????????????????# # ##??## """ # | | ??????????????????????????????####"##?# "#### | | ?????????????????????????????????## #### ###??? | | ??????????????????????????????????# # ##????? | | ??????????????????????????????????##### # ##????## | | ??????????????????????????????????????###"#???### | | ????????????????????????????????????????###??## | | ?????????????????????????????????????????????# | | ??????????????????????????????????????????# | | ?????????????????????????????????????????# | | ?????????????????????????????????????????# # | | ????????????????????????????????????????# ? | | ????????????????????????????????????????# ##### ? | | ????????????????????????????????????????#?????# ?? | | ??????????????????????????????????????????????# ?? | +----------------------------------------------------+ Best States ------------- Heat Dissipation 25 Energy Generation 15 Energy Capacity 200 Matter Stores 300 Matter Capacity 300 Sight Range 21 Terrain Scan Range 16 Terrain Scan Density 10 Armor Coverage 800 Evasion (%) 45 Item Schematics ----------------- None Robot Schematics ------------------ None Fabricated ------------ Nothing Repaired ---------- Nothing Studied --------- None Alien Tech Used ----------------- None Achievements -------------- Spot Them First Challenges ------------ None Game ------ Seed InterdictionDeflectorClaws Manual? 0 Play Time 00:29:07 Cumulative 58.6 hours Start 2026.02.17 @ 19:06:34 End 2026.02.17 @ 21:03:40 Sessions 1 Manual Loads 0 Difficulty Rogue Special Mode None Game No. 36 Rogue 36 Adventurer 0 Explorer 0 Win Type - Total 0 Types 0/0/0/0/0/0/0/0/0/0 Lore% 21 Gallery% 22 Achievement% 13 Wizard Run 0 Options --------- Layout 1 ASCII 0 Keyboard 1 Movement Numpad Keybinds 0 Fullscreen 1 Font 24/Smallcaps Map View 50x35 Zoom Use 0% Tactical HUD 1 Map Filters NONE Filters NONE Steam 1 RUN: 7d0a2c09-6b23-4e5c-9c03-5ef55a69bbf8